﻿Departmental family,Entity,Date Paid,Expense type,Expense Area,Supplier,Transaction Number,Amount, Description , Supplier Type ,Expenditure Type
UK Statistics Authority,Office for National Statistics,03-Dec-18,IT Contractual Services,Digital Services and Technology,E Synergy Solutions,114434,"15,180.00", Information Management Services , SME ,Programme
UK Statistics Authority,Office for National Statistics,03-Dec-18,IT Contractual Services,Digital Services and Technology,E Synergy Solutions,114434,"82,188.00", Information Management Services , SME ,Programme
UK Statistics Authority,Office for National Statistics,03-Dec-18,IT Contractual Services,Digital Services and Technology,E Synergy Solutions,114434,"18,630.00", Information Management Services , SME ,Programme
UK Statistics Authority,Office for National Statistics,03-Dec-18,IT Contractual Services,Policy and Communication,E Synergy Solutions,114434,"13,200.00", Information Management Services , SME ,Programme
UK Statistics Authority,Office for National Statistics,03-Dec-18,IT Contractual Services,Policy and Communication,E Synergy Solutions,114434,"15,840.00", Information Management Services , SME ,Programme
UK Statistics Authority,Office for National Statistics,03-Dec-18,Consultancy,Public Population and Policy - Transformation,Deloitte,114443,"664,278.00", Information Management Services, Large ,Programme
UK Statistics Authority,Office for National Statistics,03-Dec-18,Consultancy,Economic Statistics Transformation,Techmodal,114445,"13,315.20", Information Management Services, Large ,Programme
UK Statistics Authority,Office for National Statistics,03-Dec-18,Contractors,Economic Statistics Transformation,Techmodal,114445,"17,940.00", Information Management Services, Large ,Programme
UK Statistics Authority,Office for National Statistics,03-Dec-18,Contractors,Public Population and Policy - Transformation,Certeco Ltd,114446,"51,360.00", Information Management Services , Large ,Programme
UK Statistics Authority,Office for National Statistics,03-Dec-18,ICT Outsourcing and Maintenance/Support,"Finance, Planning and Performance",Accenture (UK) Limited,114451,"80,400.00", Information Management Services , SME ,Programme
UK Statistics Authority,Office for National Statistics,04-Dec-18,Contractors,Economic Statistics Transformation,Concept Information Technology Ltd T/A Concept Resourcing,115001,"3,778.24", Information Management Services, Large ,Programme
UK Statistics Authority,Office for National Statistics,04-Dec-18,Contractors,Economic Statistics Transformation,Concept Information Technology Ltd T/A Concept Resourcing,115001,"3,577.54", Information Management Services, Large ,Programme
UK Statistics Authority,Office for National Statistics,04-Dec-18,Contractors,Economic Statistics Transformation,Concept Information Technology Ltd T/A Concept Resourcing,115001,"4,957.26", Information Management Services, Large ,Programme
UK Statistics Authority,Office for National Statistics,04-Dec-18,Contractors,National Accounts and Economic Statistics,Concept Information Technology Ltd T/A Concept Resourcing,115001,"10,260.00", Information Management Services, Large ,Programme
UK Statistics Authority,Office for National Statistics,04-Dec-18,IT Contractual Services,Digital Services and Technology,Concept Information Technology Ltd T/A Concept Resourcing,115001,"10,812.00", Information Management Services, Large ,Programme
UK Statistics Authority,Office for National Statistics,04-Dec-18,IT Contractual Services,Digital Services and Technology,Concept Information Technology Ltd T/A Concept Resourcing,115001,"35,550.00", Information Management Services, Large ,Programme
UK Statistics Authority,Office for National Statistics,04-Dec-18,Short-Term Contract and Agency Staff - Full Cost,Economic Statistics Transformation,Concept Information Technology Ltd T/A Concept Resourcing,115001,"3,170.77", Information Management Services, Large ,Programme
UK Statistics Authority,Office for National Statistics,04-Dec-18,Short-Term Contract and Agency Staff - Full Cost,Economic Statistics Transformation,Concept Information Technology Ltd T/A Concept Resourcing,115001,"2,974.36", Information Management Services, Large ,Programme
UK Statistics Authority,Office for National Statistics,04-Dec-18,Short-Term Contract and Agency Staff - Full Cost,Economic Statistics Transformation,Concept Information Technology Ltd T/A Concept Resourcing,115001,"3,965.81", Information Management Services, Large ,Programme
UK Statistics Authority,Office for National Statistics,04-Dec-18,Short-Term Contract and Agency Staff - Full Cost,Economic Statistics Transformation,Concept Information Technology Ltd T/A Concept Resourcing,115001,"3,935.26", Information Management Services, Large ,Programme
UK Statistics Authority,Office for National Statistics,04-Dec-18,Short-Term Contract and Agency Staff - Full Cost,Economic Statistics Transformation,Concept Information Technology Ltd T/A Concept Resourcing,115001,"7,810.85", Information Management Services, Large ,Programme
UK Statistics Authority,Office for National Statistics,04-Dec-18,Short-Term Contract and Agency Staff - Full Cost,"Finance, Planning and Performance",Concept Information Technology Ltd T/A Concept Resourcing,115001,"3,287.68", Information Management Services, Large ,Programme
UK Statistics Authority,Office for National Statistics,04-Dec-18,Short-Term Contract and Agency Staff - Full Cost,"Methods, Data and Research",Concept Information Technology Ltd T/A Concept Resourcing,115001,"3,981.08", Information Management Services, Large ,Programme
UK Statistics Authority,Office for National Statistics,04-Dec-18,Short-Term Contract and Agency Staff - Full Cost,National Accounts and Economic Statistics,Concept Information Technology Ltd T/A Concept Resourcing,115001,"8,715.40", Information Management Services, Large ,Programme
UK Statistics Authority,Office for National Statistics,04-Dec-18,Short-Term Contract and Agency Staff - Full Cost,National Accounts and Economic Statistics,Concept Information Technology Ltd T/A Concept Resourcing,115001,"3,316.01", Information Management Services, Large ,Programme
UK Statistics Authority,Office for National Statistics,04-Dec-18,Short-Term Contract and Agency Staff - Full Cost,National Accounts and Economic Statistics,Concept Information Technology Ltd T/A Concept Resourcing,115001,"11,100.24", Information Management Services, Large ,Programme
UK Statistics Authority,Office for National Statistics,04-Dec-18,Short-Term Contract and Agency Staff - Full Cost,Public Policy Analysis,Concept Information Technology Ltd T/A Concept Resourcing,115001,"4,957.26", Information Management Services, Large ,Programme
UK Statistics Authority,Office for National Statistics,04-Dec-18,Short-Term Contract and Agency Staff - Full Cost,Public Policy Analysis,Concept Information Technology Ltd T/A Concept Resourcing,115001,"3,812.00", Information Management Services, Large ,Programme
UK Statistics Authority,Office for National Statistics,04-Dec-18,ICT Costs - Software,Digital Services and Technology,SCC,115003,"296,957.83", Information Management Services, Large ,Programme
UK Statistics Authority,Office for National Statistics,04-Dec-18,IT Purchases > 2K,Digital Services and Technology,SCC,115003,"117,912.79", Information Management Services, Large ,Programme
UK Statistics Authority,Office for National Statistics,04-Dec-18,ICT Outsourcing and Maintenance/Support,Digital Services and Technology,Methods Business & Digital Technology Ltd,115007,"18,000.00", Information Management Services, Large ,Programme
UK Statistics Authority,Office for National Statistics,04-Dec-18,IT Contractual Services,Digital Services and Technology,Methods Business & Digital Technology Ltd,115007,"34,650.00", Information Management Services, Large ,Programme
UK Statistics Authority,Office for National Statistics,04-Dec-18,IT Contractual Services,Digital Services and Technology,Methods Business & Digital Technology Ltd,115007,"86,490.00", Information Management Services, Large ,Programme
UK Statistics Authority,Office for National Statistics,04-Dec-18,IT Contractual Services,Digital Services and Technology,Methods Business & Digital Technology Ltd,115007,"36,000.00", Information Management Services, Large ,Programme
UK Statistics Authority,Office for National Statistics,04-Dec-18,IT Contractual Services,Digital Services and Technology,Methods Business & Digital Technology Ltd,115007,"52,440.00", Information Management Services, Large ,Programme
UK Statistics Authority,Office for National Statistics,04-Dec-18,ICT Outsourcing and Maintenance/Support,Digital Services and Technology,Powertecnique,115008,"47,166.00", Information Management Services , Large ,Programme
UK Statistics Authority,Office for National Statistics,04-Dec-18,IT Contractual Services,Digital Services and Technology,QA Ltd,115010,"28,665.00", Information Management Services, Large ,Programme
UK Statistics Authority,Office for National Statistics,04-Dec-18,IT Management and Change,Digital Services and Technology,Computacenter (UK) Limited,115013,"939,882.83", Information Management Services , Large ,Programme
UK Statistics Authority,Office for National Statistics,04-Dec-18,Contractors,People and Business Services,Parity Resources Limited,115014,"13,110.77", Information Management Services, Large ,Programme
UK Statistics Authority,Office for National Statistics,04-Dec-18,Contractors,Public Population and Policy - Transformation,Parity Resources Limited,115014,"14,160.00", Information Management Services, Large ,Programme
UK Statistics Authority,Office for National Statistics,04-Dec-18,Contractors,Public Population and Policy - Transformation,Parity Resources Limited,115014,"10,573.20", Information Management Services, Large ,Programme
UK Statistics Authority,Office for National Statistics,04-Dec-18,IT Contractual Services,Digital Services and Technology,Parity Resources Limited,115014,"6,920.64", Information Management Services, Large ,Programme
UK Statistics Authority,Office for National Statistics,04-Dec-18,Short-Term Contract and Agency Staff - Full Cost,"Methods, Data and Research",Parity Resources Limited,115014,"3,055.70", Information Management Services, Large ,Programme
UK Statistics Authority,Office for National Statistics,04-Dec-18,Short-Term Contract and Agency Staff - Full Cost,Public Population and Policy - Operations,Parity Resources Limited,115014,"12,175.20", Information Management Services, Large ,Programme
UK Statistics Authority,Office for National Statistics,04-Dec-18,IT Contractual Services,Digital Services and Technology,Mosaic Island,115016,"29,532.00", Census Information Management Services , Large ,Programme
UK Statistics Authority,Office for National Statistics,04-Dec-18,Marketing and Communications Services,Policy and Communication,Four Communications Group Limited,115017,"64,349.16", Census Information Management Services , SME ,Programme
UK Statistics Authority,Office for National Statistics,04-Dec-18,Accommodation and Building Management,People and Business Services,Insights Learning and Development Limited,115018,524.18, Training and Development, SME ,Programme
UK Statistics Authority,Office for National Statistics,04-Dec-18,Training and Development,People and Business Services,Insights Learning and Development Limited,115018,"39,828.00", Training and Development, SME ,Programme
UK Statistics Authority,Office for National Statistics,05-Dec-18,Telecommunications,Digital Services and Technology,BT Global Services,115030,"49,105.91", BT Cloud Services, Large ,Programme
UK Statistics Authority,Office for National Statistics,05-Dec-18,Telecommunications,Digital Services and Technology,BT Global Services,115031,"25,152.00", BT Cloud Services, Large ,Programme
UK Statistics Authority,Office for National Statistics,05-Dec-18,Telecommunications,Public Population and Policy - Operations,BT Global Services,115031,"7,255.43", BT Cloud Services, Large ,Programme
UK Statistics Authority,Office for National Statistics,05-Dec-18,Travel and Subsistence,"Finance, Planning and Performance",Corporate Travel Management ,115033,"60,238.54", Travel and Accommodation Booking Service , SME ,Programme
UK Statistics Authority,Office for National Statistics,05-Dec-18,Travel and Subsistence,"Finance, Planning and Performance",Calder World of Travel,115035,"31,642.74", Travel and Accommodation Booking Service , SME ,Programme
UK Statistics Authority,Office for National Statistics,05-Dec-18,Surveys,National Accounts and Economic Statistics,IFF Research,115040,"103,422.00", Statistical Services, Large ,Programme
UK Statistics Authority,Office for National Statistics,07-Dec-18,Capitalised Contractors,Digital Services and Technology,E Synergy Solutions,115405,"15,456.00", Information Management Services , SME ,Programme
UK Statistics Authority,Office for National Statistics,07-Dec-18,Contractors Travel,Digital Services and Technology,E Synergy Solutions,115405,188.4, Information Management Services , SME ,Programme
UK Statistics Authority,Office for National Statistics,07-Dec-18,Contractors Travel,Policy and Communication,E Synergy Solutions,115405,99.72, Information Management Services , SME ,Programme
UK Statistics Authority,Office for National Statistics,07-Dec-18,IT Contractual Services,Digital Services and Technology,E Synergy Solutions,115405,"9,000.00", Information Management Services , SME ,Programme
UK Statistics Authority,Office for National Statistics,07-Dec-18,IT Contractual Services,Digital Services and Technology,E Synergy Solutions,115405,"42,414.00", Information Management Services , SME ,Programme
UK Statistics Authority,Office for National Statistics,07-Dec-18,IT Contractual Services,Digital Services and Technology,E Synergy Solutions,115405,"46,440.00", Information Management Services , SME ,Programme
UK Statistics Authority,Office for National Statistics,07-Dec-18,Surveys,Policy and Communication,NatCen Social Research,115407,"75,916.21", Statistical Services, Large ,Programme
UK Statistics Authority,Office for National Statistics,07-Dec-18,,Public Population and Policy - Operations,NatCen Social Research,115407,"248,294.69", Statistical Services, Large ,Programme
UK Statistics Authority,Office for National Statistics,07-Dec-18,Incentive Payments,Public Population and Policy - Operations,Park Retail Ltd,115409,"9,105.59", Social Surveys Incentive Vouchers, Large ,Programme
UK Statistics Authority,Office for National Statistics,07-Dec-18,Incentive Payments,Public Population and Policy - Operations,Park Retail Ltd,115409,"16,428.82", Social Surveys Incentive Vouchers, Large ,Programme
UK Statistics Authority,Office for National Statistics,07-Dec-18,Incentive Payments,Public Population and Policy - Operations,Park Retail Ltd,115409,"2,662.08", Social Surveys Incentive Vouchers, Large ,Programme
UK Statistics Authority,Office for National Statistics,07-Dec-18,Incentive Payments,Public Population and Policy - Operations,Park Retail Ltd,115409,"2,054.56", Social Surveys Incentive Vouchers, Large ,Programme
UK Statistics Authority,Office for National Statistics,07-Dec-18,Telecommunications,Digital Services and Technology,BT Global Services,115410,"26,821.77", Information Management Services , Large ,Programme
UK Statistics Authority,Office for National Statistics,07-Dec-18,ICT Outsourcing and Maintenance/Support,"Finance, Planning and Performance",Phoenix Software Ltd,115413,"169,180.80", License and Software Maintenance , SME ,Programme
UK Statistics Authority,Office for National Statistics,07-Dec-18,IT Contractual Services,Digital Services and Technology,QA Ltd,115420,"192,447.00", Information Management Services, Large ,Programme
UK Statistics Authority,Office for National Statistics,07-Dec-18,IT Contractual Services,Digital Services and Technology,QA Ltd,115421,"303,918.00", Information Management Services, Large ,Programme
UK Statistics Authority,Office for National Statistics,07-Dec-18,ICT Outsourcing and Maintenance/Support,Digital Services and Technology,Computacenter (UK) Limited,115424,"29,445.00", Information Management Services , Large ,Programme
UK Statistics Authority,Office for National Statistics,07-Dec-18,ICT Outsourcing and Maintenance/Support,Digital Services and Technology,Computacenter (UK) Limited,115424,"117,779.98", Information Management Services , Large ,Programme
UK Statistics Authority,Office for National Statistics,07-Dec-18,Childcare Services,"Finance, Planning and Performance",Computershare Voucher Services,115425,"41,792.68", Childcare Vouchers , Large ,Programme
UK Statistics Authority,Office for National Statistics,07-Dec-18,Consultancy,Public Population and Policy - Operations,Gowling WLG (UK) LLP,115426,"46,434.00", Legal Services for Census Planning, Large ,Programme
UK Statistics Authority,Office for National Statistics,07-Dec-18,Non-IT Contractual Payments,Public Population and Policy - Operations,Gowling WLG (UK) LLP,115426,"17,094.96", Legal Services for Census Planning, Large ,Programme
UK Statistics Authority,Office for National Statistics,07-Dec-18,Accommodation and Building Management,People and Business Services,James Andrew RSW Ltd,115427,"58,605.00", Drummond Gate Rent, SME ,Programme
UK Statistics Authority,Office for National Statistics,10-Dec-18,Surveys,National Accounts and Economic Statistics,Kantar Public,115750,"1,710.00", Statistical Services, SME ,Programme
UK Statistics Authority,Office for National Statistics,10-Dec-18,Surveys,National Accounts and Economic Statistics,Kantar Public,115750,"188,328.90", Statistical Services, SME ,Programme
UK Statistics Authority,Office for National Statistics,10-Dec-18,Surveys,Public Policy Analysis,Kantar Public,115750,"452,949.38", Statistical Services, SME ,Programme
UK Statistics Authority,Office for National Statistics,10-Dec-18,Incentive Payments,Public Population and Policy - Operations,Park Retail Ltd,115753,"18,396.81", Social Surveys Incentive Vouchers, Large ,Programme
UK Statistics Authority,Office for National Statistics,10-Dec-18,Incentive Payments,Public Population and Policy - Operations,Park Retail Ltd,115753,"2,474.30", Social Surveys Incentive Vouchers, Large ,Programme
UK Statistics Authority,Office for National Statistics,10-Dec-18,Incentive Payments,Public Population and Policy - Operations,Park Retail Ltd,115753,"2,383.40", Social Surveys Incentive Vouchers, Large ,Programme
UK Statistics Authority,Office for National Statistics,10-Dec-18,Performance Related Pay - Voucher Payments,ONS Corporate Funds,Park Retail Ltd,115753,"11,747.50", Social Surveys Incentive Vouchers, Large ,Programme
UK Statistics Authority,Office for National Statistics,10-Dec-18,Facilities Management Contract Payments,"Finance, Planning and Performance",Vinci Construction UK Limited,115755,"599,894.61", Facility Management Services, Large ,Programme
UK Statistics Authority,Office for National Statistics,10-Dec-18,Major Works Over 25K,People and Business Services,Vinci Construction UK Limited,115755,"60,590.43",Major Works Titchfield, Large ,Programme
UK Statistics Authority,Office for National Statistics,10-Dec-18,Cognitive Testing,Public Population and Policy - Transformation,Solutions Strategy Research Facilitation Ltd,115756,"42,036.00", Census Information Management Services , Large ,Programme
UK Statistics Authority,Office for National Statistics,10-Dec-18,Capital Works > 25K,People and Business Services,Paramount Office Interiors Ltd,115771,"58,543.09", Major Works Titchfield , SME ,Programme
UK Statistics Authority,Office for National Statistics,10-Dec-18,Major Works Over 25K,People and Business Services,Paramount Office Interiors Ltd,115771,"132,846.24", Major Works Titchfield , SME ,Programme
UK Statistics Authority,Office for National Statistics,10-Dec-18,ICT Outsourcing and Maintenance/Support,Public Population and Policy - Operations,Totalmobile Ltd,115785,"143,186.40", Field Work Management Tool, SME ,Programme
UK Statistics Authority,Office for National Statistics,12-Dec-18,Procurement Cards,"Finance, Planning and Performance",Royal Bank of Scotland,116119,"52,163.73", Multiple Procurement Card Purchases  , Large ,Programme
UK Statistics Authority,Office for National Statistics,12-Dec-18,Stationery,"Finance, Planning and Performance",Royal Bank of Scotland,116119,"8,258.32", Multiple Procurement Card Stationery Purchases  , Large ,Programme
UK Statistics Authority,Office for National Statistics,12-Dec-18,Travel and Subsistence,"Finance, Planning and Performance",Corporate Travel Management ,116122,"65,513.38", Travel and Accommodation Booking Service , SME ,Programme
UK Statistics Authority,Office for National Statistics,13-Dec-18,IT Contractual Services,Digital Services and Technology,Cloudwick Technologies UK,116479,"38,640.00", G Cloud 9 Services, SME ,Programme
UK Statistics Authority,Office for National Statistics,13-Dec-18,ICT Outsourcing and Maintenance/Support,Digital Services and Technology,Amazon Web Services Inc,116480,"84,192.82", Web Services, Large ,Programme
UK Statistics Authority,Office for National Statistics,13-Dec-18,Legal Services,Policy and Communication,Government Legal Department,116482,"33,117.96", Census Legal Services, Large ,Programme
UK Statistics Authority,Office for National Statistics,13-Dec-18,Contractors,Digital Services and Technology,LA International,116489,"23,597.10", Information Management Services, SME ,Programme
UK Statistics Authority,Office for National Statistics,13-Dec-18,Contractors,Digital Services and Technology,LA International,116489,"6,696.02", Information Management Services, SME ,Programme
UK Statistics Authority,Office for National Statistics,13-Dec-18,Going Digital Project,Economic Statistics Transformation,OECD,116491,"25,000.00", Statistical Collaboration, Large ,Programme
UK Statistics Authority,Office for National Statistics,13-Dec-18,ICT Outsourcing and Maintenance/Support,Public Population and Policy - Operations,Totalmobile Ltd,116494,"244,447.20", Field Work Management Tool, SME ,Programme
UK Statistics Authority,Office for National Statistics,14-Dec-18,Facilities Management Contract Payments,"Finance, Planning and Performance",Vinci Construction UK Limited,116496,"95,131.98", Facility Management Services, Large ,Programme
UK Statistics Authority,Office for National Statistics,18-Dec-18,ICT Costs - Software,Digital Services and Technology,SCC,117143,"16,654.43", Information Management Services, Large ,Programme
UK Statistics Authority,Office for National Statistics,18-Dec-18,ICT Costs - Software,National Accounts and Economic Statistics,SCC,117143,639.7, Information Management Services, Large ,Programme
UK Statistics Authority,Office for National Statistics,18-Dec-18,ICT Outsourcing and Maintenance/Support,Digital Services and Technology,SCC,117143,"127,872.00", Information Management Services, Large ,Programme
UK Statistics Authority,Office for National Statistics,18-Dec-18,ICT Outsourcing and Maintenance/Support,People and Business Services,SCC,117143,"63,936.00", Information Management Services, Large ,Programme
UK Statistics Authority,Office for National Statistics,18-Dec-18,IT Contractual Services,Digital Services and Technology,DSCC,117143,"220,040.93", Information Management Services , Large ,Programme
UK Statistics Authority,Office for National Statistics,18-Dec-18,IT Management and Change,Digital Services and Technology,SCC,117143,"1,440.00", Information Management Services, Large ,Programme
UK Statistics Authority,Office for National Statistics,18-Dec-18,ICT Outsourcing and Maintenance/Support,Digital Services and Technology,Software Box Ltd,117144,"3,078.76", Computer Hardware, SME ,Programme
UK Statistics Authority,Office for National Statistics,18-Dec-18,IT Management and Change,Digital Services and Technology,Software Box Ltd,117144,"5,598.36", Computer Hardware, SME ,Programme
UK Statistics Authority,Office for National Statistics,18-Dec-18,IT Management and Change,Digital Services and Technology,Software Box Ltd,117144,117.23, Computer Hardware, SME ,Programme
UK Statistics Authority,Office for National Statistics,18-Dec-18,IT Purchases > 2K,Data Science Campus,Software Box Ltd,117144,"28,569.60", Computer Hardware, SME ,Programme
UK Statistics Authority,Office for National Statistics,18-Dec-18,IT Purchases > 2K,Digital Services and Technology,Software Box Ltd,117144,"3,683.71", Computer Hardware, SME ,Programme
UK Statistics Authority,Office for National Statistics,18-Dec-18,Postage,Public Population and Policy - Operations,DHL Parcel Ltd,117145,"28,313.72", Outgoing Postage, Large ,Programme
UK Statistics Authority,Office for National Statistics,18-Dec-18,ICT Outsourcing and Maintenance/Support,"Finance, Planning and Performance",Crown Commercial Service,117148,"34,287.16", Payroll Services, Large ,Programme
UK Statistics Authority,Office for National Statistics,18-Dec-18,IT Contractual Services,Digital Services and Technology,Methods Business & Digital Technology Ltd,117149,"28,800.00", Information Management Services, Large ,Programme
UK Statistics Authority,Office for National Statistics,18-Dec-18,IT Contractual Services,Digital Services and Technology,Methods Business & Digital Technology Ltd,117149,"82,800.00", Information Management Services, Large ,Programme
UK Statistics Authority,Office for National Statistics,18-Dec-18,End User Software and Hardware,Digital Services and Technology,Computacenter (UK) Limited,117153,"138,693.57", Information Management Services , Large ,Programme
UK Statistics Authority,Office for National Statistics,18-Dec-18,IT Management and Change,Digital Services and Technology,Computacenter (UK) Limited,117153,"5,724.00", Information Management Services , Large ,Programme
UK Statistics Authority,Office for National Statistics,18-Dec-18,Specialist User Software and Hardware,Digital Services and Technology,Computacenter (UK) Limited,117153,"81,242.88", Information Management Services , Large ,Programme
UK Statistics Authority,Office for National Statistics,18-Dec-18,ICT Outsourcing and Maintenance/Support,Digital Services and Technology,ServiceNow,117154,"83,191.68", Software Licence and Maintenance, Large ,Programme
UK Statistics Authority,Office for National Statistics,18-Dec-18,ICT Outsourcing and Maintenance/Support,Digital Services and Technology,Comparex UK Ltd,117155,"33,502.54", Information Management Services, Large ,Programme
UK Statistics Authority,Office for National Statistics,18-Dec-18,ICT Outsourcing and Maintenance/Support,Digital Services and Technology,Mosaic Island,117156,"14,124.00", Information Management Services , Large ,Programme
UK Statistics Authority,Office for National Statistics,18-Dec-18,ICT Outsourcing and Maintenance/Support,Digital Services and Technology,Mosaic Island,117156,"14,124.00", Information Management Services , Large ,Programme
UK Statistics Authority,Office for National Statistics,18-Dec-18,Electricity,People and Business Services,James Andrew RSW Ltd,117157,"50,670.78", Drummond Gate Rent, SME ,Programme
UK Statistics Authority,Office for National Statistics,18-Dec-18,Training and Development,Digital Services and Technology,Armakuni Ltd,117158,"45,000.00", Information Management Services , SME ,Programme
UK Statistics Authority,Office for National Statistics,18-Dec-18,Furniture < 2K per Item,"Methods, Data and Research",Gresham Office Furniture Limited,117160,"15,369.96", Provision and Installation of Furniture , SME ,Programme
UK Statistics Authority,Office for National Statistics,18-Dec-18,Furniture > 2K per Item,People and Business Services,Gresham Office Furniture Limited,117160,"91,928.28", Provision and Installation of Furniture , SME ,Programme
UK Statistics Authority,Office for National Statistics,18-Dec-18,Contractors Travel,Digital Services and Technology,E Synergy Solutions,117166,150.9, Information Management Services , SME ,Programme
UK Statistics Authority,Office for National Statistics,18-Dec-18,IT Contractual Services,Digital Services and Technology,E Synergy Solutions,117166,"18,900.00", Information Management Services , SME ,Programme
UK Statistics Authority,Office for National Statistics,18-Dec-18,IT Contractual Services,Digital Services and Technology,E Synergy Solutions,117166,"47,568.00", Information Management Services , SME ,Programme
UK Statistics Authority,Office for National Statistics,18-Dec-18,IT Contractual Services,Digital Services and Technology,E Synergy Solutions,117166,"187,650.00", Information Management Services , SME ,Programme
UK Statistics Authority,Office for National Statistics,18-Dec-18,Incentive Payments,Public Population and Policy - Operations,Park Retail Ltd,117167,"35,283.90", Social Surveys Incentive Vouchers, Large ,Programme
UK Statistics Authority,Office for National Statistics,18-Dec-18,Performance Related Pay - Voucher Payments,ONS Corporate Funds,Park Retail Ltd,117167,"14,397.40", Social Surveys Incentive Vouchers, Large ,Programme
UK Statistics Authority,Office for National Statistics,18-Dec-18,Facilities Management Contract Payments,"Finance, Planning and Performance",Vinci Construction UK Limited,117168,"304,604.52", Facility Management Services, Large ,Programme
UK Statistics Authority,Office for National Statistics,18-Dec-18,Electricity,People and Business Services,EDF Energy,30001149,"31,024.47", Electricity Charges Newport, Large ,Programme
UK Statistics Authority,Office for National Statistics,18-Dec-18,Electricity,People and Business Services,EDF Energy,30001150,"28,480.15", Electricity Charges Titchfield, Large ,Programme
UK Statistics Authority,Office for National Statistics,19-Dec-18,Travel and Subsistence,"Finance, Planning and Performance",Corporate Travel Management ,117174,"54,579.65", Travel and Accommodation Booking Service , SME ,Programme
UK Statistics Authority,Office for National Statistics,20-Dec-18,ICT Outsourcing and Maintenance/Support,Digital Services and Technology,Crown Hosting Data Centres Limited,117566,"42,708.08", Cloud Services, SME ,Programme
UK Statistics Authority,Office for National Statistics,20-Dec-18,ICT Outsourcing and Maintenance/Support,Digital Services and Technology,Crown Hosting Data Centres Limited,117566,860, Cloud Services, SME ,Programme
UK Statistics Authority,Office for National Statistics,20-Dec-18,ICT Outsourcing and Maintenance/Support,Digital Services and Technology,Crown Hosting Data Centres Limited,117566,"30,864.05", Cloud Services, SME ,Programme
UK Statistics Authority,Office for National Statistics,20-Dec-18,Telecommunications,Digital Services and Technology,Crown Hosting Data Centres Limited,117566,"1,720.01", Cloud Services, SME ,Programme
UK Statistics Authority,Office for National Statistics,20-Dec-18,Contractors,Economic Statistics Transformation,Concept Information Technology Ltd T/A Concept Resourcing,117567,"3,121.74", Information Management Services, Large ,Programme
UK Statistics Authority,Office for National Statistics,20-Dec-18,Contractors,"Methods, Data and Research",Concept Information Technology Ltd T/A Concept Resourcing,117567,"2,223.50", Information Management Services, Large ,Programme
UK Statistics Authority,Office for National Statistics,20-Dec-18,Short-Term Contract and Agency Staff - Full Cost,Economic Statistics Transformation,Concept Information Technology Ltd T/A Concept Resourcing,117567,"3,289.21", Information Management Services, Large ,Programme
UK Statistics Authority,Office for National Statistics,20-Dec-18,Short-Term Contract and Agency Staff - Full Cost,Economic Statistics Transformation,Concept Information Technology Ltd T/A Concept Resourcing,117567,"11,607.76", Information Management Services, Large ,Programme
UK Statistics Authority,Office for National Statistics,20-Dec-18,Short-Term Contract and Agency Staff - Full Cost,"Methods, Data and Research",Concept Information Technology Ltd T/A Concept Resourcing,117567,"4,235.28", Information Management Services, Large ,Programme
UK Statistics Authority,Office for National Statistics,20-Dec-18,Short-Term Contract and Agency Staff - Full Cost,"Methods, Data and Research",Concept Information Technology Ltd T/A Concept Resourcing,117567,"3,965.81", Information Management Services, Large ,Programme
UK Statistics Authority,Office for National Statistics,20-Dec-18,Short-Term Contract and Agency Staff - Full Cost,National Accounts and Economic Statistics,Concept Information Technology Ltd T/A Concept Resourcing,117567,"3,713.65", Information Management Services, Large ,Programme
UK Statistics Authority,Office for National Statistics,20-Dec-18,Short-Term Contract and Agency Staff - Full Cost,National Accounts and Economic Statistics,Concept Information Technology Ltd T/A Concept Resourcing,117567,"3,965.81", Information Management Services, Large ,Programme
UK Statistics Authority,Office for National Statistics,20-Dec-18,Short-Term Contract and Agency Staff - Full Cost,National Accounts and Economic Statistics,Concept Information Technology Ltd T/A Concept Resourcing,117567,"3,805.03", Information Management Services, Large ,Programme
UK Statistics Authority,Office for National Statistics,20-Dec-18,Short-Term Contract and Agency Staff - Full Cost,National Accounts and Economic Statistics,Concept Information Technology Ltd T/A Concept Resourcing,117567,"3,965.81", Information Management Services, Large ,Programme
UK Statistics Authority,Office for National Statistics,20-Dec-18,Short-Term Contract and Agency Staff - Full Cost,Public Policy Analysis,Concept Information Technology Ltd T/A Concept Resourcing,117567,"3,965.81", Information Management Services, Large ,Programme
UK Statistics Authority,Office for National Statistics,20-Dec-18,Short-Term Contract and Agency Staff - Full Cost,Public Policy Analysis,Concept Information Technology Ltd T/A Concept Resourcing,117567,"3,965.81", Information Management Services, Large ,Programme
UK Statistics Authority,Office for National Statistics,20-Dec-18,Short-Term Contract and Agency Staff - Full Cost,Public Population and Policy - Transformation,Concept Information Technology Ltd T/A Concept Resourcing,117567,"2,634.37", Information Management Services, Large ,Programme
UK Statistics Authority,Office for National Statistics,20-Dec-18,Surveys,Public Population and Policy - Transformation,Ipsos MORI,117573,"264,960.00", Statistical Services, Large ,Programme
UK Statistics Authority,Office for National Statistics,20-Dec-18,Contractors,"Methods, Data and Research",Certes Computing Ltd,117575,"6,725.28", Information Management Services , SME ,Programme
UK Statistics Authority,Office for National Statistics,20-Dec-18,Contractors,Public Population and Policy - Transformation,Certes Computing Ltd,117575,"21,048.00", Information Management Services , SME ,Programme
UK Statistics Authority,Office for National Statistics,20-Dec-18,Contractors,Digital Services and Technology,LA International,117576,"15,330.00", Information Management Services, SME ,Programme
UK Statistics Authority,Office for National Statistics,20-Dec-18,Contractors,Digital Services and Technology,LA International,117576,"9,162.97", Information Management Services, SME ,Programme
UK Statistics Authority,Office for National Statistics,20-Dec-18,Contractors,National Accounts and Economic Statistics,LA International,117576,"5,766.96", Information Management Services, SME ,Programme
UK Statistics Authority,Office for National Statistics,20-Dec-18,Contractors,Public Population and Policy - Operations,LA International,117576,"3,748.50", Information Management Services, SME ,Programme
UK Statistics Authority,Office for National Statistics,20-Dec-18,ICT Outsourcing and Maintenance/Support,Policy and Communication,LA International,117576,"7,048.44", Information Management Services, SME ,Programme
UK Statistics Authority,Office for National Statistics,20-Dec-18,Contractors,Digital Services and Technology,Parity Resources Limited,117579,"17,697.60", Information Management Services, Large ,Programme
UK Statistics Authority,Office for National Statistics,20-Dec-18,Contractors,Digital Services and Technology,Parity Resources Limited,117579,"12,930.48", Information Management Services, Large ,Programme
UK Statistics Authority,Office for National Statistics,20-Dec-18,Contractors,Digital Services and Technology,Parity Resources Limited,117579,"31,472.34", Information Management Services, Large ,Programme
UK Statistics Authority,Office for National Statistics,20-Dec-18,Contractors,Policy and Communication,Parity Resources Limited,117579,"1,281.60", Information Management Services, Large ,Programme
UK Statistics Authority,Office for National Statistics,20-Dec-18,Contractors,Public Population and Policy - Operations,Parity Resources Limited,117579,"16,020.00", Information Management Services, Large ,Programme
UK Statistics Authority,Office for National Statistics,20-Dec-18,Contractors,Public Population and Policy - Transformation,Parity Resources Limited,117579,"47,419.20", Information Management Services, Large ,Programme
UK Statistics Authority,Office for National Statistics,20-Dec-18,Contractors,Public Population and Policy - Transformation,Parity Resources Limited,117579,"13,200.48", Information Management Services, Large ,Programme
UK Statistics Authority,Office for National Statistics,20-Dec-18,ICT Outsourcing and Maintenance/Support,Policy and Communication,Parity Resources Limited,117579,"10,509.12", Information Management Services, Large ,Programme
UK Statistics Authority,Office for National Statistics,20-Dec-18,IT Contractual Services,Digital Services and Technology,Parity Resources Limited,117579,"14,129.64", Information Management Services, Large ,Programme
UK Statistics Authority,Office for National Statistics,20-Dec-18,Short-Term Contract and Agency Staff - Full Cost,National Accounts and Economic Statistics,Parity Resources Limited,117579,"2,871.12", Information Management Services, Large ,Programme
UK Statistics Authority,Office for National Statistics,20-Dec-18,Short-Term Contract and Agency Staff - Full Cost,Public Population and Policy - Operations,Parity Resources Limited,117579,"6,566.99", Information Management Services, Large ,Programme
UK Statistics Authority,Office for National Statistics,20-Dec-18,Contractors,Public Population and Policy - Transformation,Certeco Ltd,117589,"33,540.00", Information Management Services , Large ,Programme
UK Statistics Authority,Office for National Statistics,20-Dec-18,IT Contractual Services,Digital Services and Technology,Cloudwick Technologies UK,117590,"3,749.49", G Cloud 9 Services, SME ,Programme
UK Statistics Authority,Office for National Statistics,20-Dec-18,IT Contractual Services,Digital Services and Technology,Cloudwick Technologies UK,117590,"35,426.60", G Cloud 9 Services, SME ,Programme
UK Statistics Authority,Office for National Statistics,20-Dec-18,Non-IT Contractual Payments,Public Population and Policy - Operations,HH Associates Ltd,117595,"108,000.00", Information Management Services , SME ,Programme
UK Statistics Authority,Office for National Statistics,21-Dec-18,ICT Outsourcing and Maintenance/Support,Digital Services and Technology,Crown Hosting Data Centres Limited,117601,"40,366.84", Cloud Services, SME ,Programme
UK Statistics Authority,Office for National Statistics,21-Dec-18,ICT Outsourcing and Maintenance/Support,Digital Services and Technology,Crown Hosting Data Centres Limited,117601,860, Cloud Services, SME ,Programme
UK Statistics Authority,Office for National Statistics,21-Dec-18,ICT Outsourcing and Maintenance/Support,Digital Services and Technology,Crown Hosting Data Centres Limited,117601,"30,846.40", Cloud Services, SME ,Programme
UK Statistics Authority,Office for National Statistics,21-Dec-18,Telecommunications,Digital Services and Technology,Crown Hosting Data Centres Limited,117601,"1,720.01", Cloud Services, SME ,Programme
UK Statistics Authority,Office for National Statistics,21-Dec-18,IT Contractual Services,Policy and Communication,Swirrl It Ltd,117605,"71,298.00", Information Management Services, SME ,Programme
UK Statistics Authority,Office for National Statistics,21-Dec-18,Telecommunications,Digital Services and Technology,BT Global Services,117611,"26,583.19", Information Management Services , Large ,Programme
UK Statistics Authority,Office for National Statistics,21-Dec-18,Telecommunications,Digital Services and Technology,BT Global Services,117612,"49,105.91", Information Management Services , Large ,Programme
UK Statistics Authority,Office for National Statistics,21-Dec-18,Telecommunications,Digital Services and Technology,BT Global Services,117613,"28,313.74", Information Management Services , Large ,Programme
UK Statistics Authority,Office for National Statistics,21-Dec-18,Telecommunications,Public Population and Policy - Operations,BT Global Services,117613,"8,011.40", Information Management Services , Large ,Programme
UK Statistics Authority,Office for National Statistics,21-Dec-18,Hosting,Digital Services and Technology,Equiniti Limited,117615,"47,212.80", Information Management Services, Large ,Programme
UK Statistics Authority,Office for National Statistics,21-Dec-18,Telecommunications,Digital Services and Technology,CenturyLink Communications UK Ltd,117625,"39,864.66", Information Management Services , Large ,Programme
UK Statistics Authority,Office for National Statistics,21-Dec-18,IT Contractual Services,Digital Services and Technology,QA Ltd,117626,"303,098.40", Information Management Services, Large ,Programme
UK Statistics Authority,Office for National Statistics,21-Dec-18,Rent Payable,People and Business Services,Eaton Aerospace Limited,117628,"26,599.20", Titchfield Car Park Rent, Large ,Programme
UK Statistics Authority,Office for National Statistics,21-Dec-18,ICT Outsourcing and Maintenance/Support,Digital Services and Technology,Amazon Web Services Inc,117641,"63,077.90", Web Services, Large ,Programme
UK Statistics Authority,Office for National Statistics,21-Dec-18,Consultancy,Digital Services and Technology,Avavea,30001155,"35,635.11",UN Global Platform G-Cloud Services, SME ,Programme
UK Statistics Authority,Office for National Statistics,21-Dec-18,IT Management and Change,Digital Services and Technology,Centraal Bureau Voor De Statistiek,90000981,"186,003.40",Software Licence, Large ,Programme
